[Event "January 9 Early 2024"]
[Site "https://www.chess.com"]
[Date "2024.01.11"]
[Round "4"]
[White "Samunenkov, Ihor"]
[Black "Kevlishvili, Robby"]
[Result "1/2-1/2"]
[Board "89"]
[TimeControl "180+1"]
[WhiteFideId "14187086"]
[BlackFideId "1040634"]
[WhiteElo "2765"]
[BlackElo "2969"]
[WhiteTeam "UKR"]
[BlackTeam "NED"]
[WhiteClock "0:00:29"]
[BlackClock "0:01:17"]

1. d4 {[%clk 0:03:00]}  Nf6 {[%clk 0:02:59]} 2. c4 {[%clk 0:03:01]}  g6 {[%clk 0:03:00]} 3. Nf3 {[%clk 0:03:01]}  Bg7 {[%clk 0:03:00]} 4. g3 {[%clk 0:03:01]}  b6 {[%clk 0:02:59]} 5. Bg2 {[%clk 0:03:01]}  Bb7 {[%clk 0:03:00]} 6. O-O {[%clk 0:03:00]}  O-O {[%clk 0:03:00]} 7. d5 {[%clk 0:02:59]}  e6 {[%clk 0:02:59]} 8. Nc3 {[%clk 0:02:58]}  exd5 {[%clk 0:02:58]} 9. cxd5 {[%clk 0:02:58]}  Re8 {[%clk 0:02:57]} 10. Re1 {[%clk 0:02:49]}  Ne4 {[%clk 0:02:53]} 11. Nxe4 {[%clk 0:02:26]}  Rxe4 {[%clk 0:02:54]} 12. Bg5 {[%clk 0:02:27]}  Qf8 {[%clk 0:02:51]} 13. Qc2 {[%clk 0:02:19]}  Re8 {[%clk 0:02:45]} 14. Qxc7 {[%clk 0:02:17]}  Bxd5 {[%clk 0:02:45]} 15. Rad1 {[%clk 0:02:15]}  Bc6 {[%clk 0:02:45]} 16. Nd4 {[%clk 0:01:56]}  Be5 {[%clk 0:02:34]} 17. Bxc6 {[%clk 0:01:39]}  Nxc6 {[%clk 0:02:15]} 18. Qxd7 {[%clk 0:01:37]}  Nxd4 {[%clk 0:02:15]} 19. Rxd4 {[%clk 0:01:37]}  Bxd4 {[%clk 0:02:15]} 20. Qxd4 {[%clk 0:01:38]}  Qc5 {[%clk 0:02:15]} 21. Qxc5 {[%clk 0:01:35]}  bxc5 {[%clk 0:02:16]} 22. Bf6 {[%clk 0:01:34]}  Re6 {[%clk 0:02:14]} 23. Bc3 {[%clk 0:01:34]}  Rd8 {[%clk 0:02:15]} 24. e3 {[%clk 0:01:31]}  Red6 {[%clk 0:02:12]} 25. Kg2 {[%clk 0:01:22]}  f6 {[%clk 0:02:08]} 26. Rc1 {[%clk 0:01:22]}  Kf7 {[%clk 0:02:08]} 27. h4 {[%clk 0:01:18]}  Rd5 {[%clk 0:02:05]} 28. Kf3 {[%clk 0:01:17]}  R8d6 {[%clk 0:02:03]} 29. Ke2 {[%clk 0:01:16]}  h5 {[%clk 0:02:02]} 30. Rh1 {[%clk 0:01:05]}  Ra6 {[%clk 0:02:01]} 31. a3 {[%clk 0:01:05]}  Re6 {[%clk 0:02:01]} 32. Kf3 {[%clk 0:01:01]}  Kg7 {[%clk 0:01:51]} 33. Ke2 {[%clk 0:01:00]}  Kh6 {[%clk 0:01:50]} 34. Rc1 {[%clk 0:00:52]}  g5 {[%clk 0:01:43]} 35. Rh1 {[%clk 0:00:52]}  Kg6 {[%clk 0:01:43]} 36. Kf3 {[%clk 0:00:49]}  g4+ {[%clk 0:01:41]} 37. Ke2 {[%clk 0:00:49]}  Kf5 {[%clk 0:01:41]} 38. Rc1 {[%clk 0:00:48]}  Ke4 {[%clk 0:01:38]} 39. Be1 {[%clk 0:00:47]}  Rb6 {[%clk 0:01:36]} 40. Rc4+ {[%clk 0:00:47]}  Ke5 {[%clk 0:01:36]} 41. Bc3+ {[%clk 0:00:47]}  Ke6 {[%clk 0:01:36]} 42. e4 {[%clk 0:00:43]}  Rd7 {[%clk 0:01:22]} 43. Rxc5 {[%clk 0:00:43]}  Rh7 {[%clk 0:01:23]} 44. Ke3 {[%clk 0:00:41]}  Rd6 {[%clk 0:01:22]} 45. Rf5 {[%clk 0:00:36]}  Rh6 {[%clk 0:01:19]} 46. Ra5 {[%clk 0:00:32]}  Rh7 {[%clk 0:01:19]} 47. Rf5 {[%clk 0:00:30]}  Rh6 {[%clk 0:01:18]} 48. Ra5 {[%clk 0:00:30]}  Rh7 {[%clk 0:01:17]} 49. Rf5 {[%clk 0:00:29]} 1/2-1/2

[Event "January 9 Early 2024"]
[Site "https://www.chess.com"]
[Date "2024.01.11"]
[Round "4"]
[White "Lagarde, Maxime"]
[Black "Rasulov, Vugar"]
[Result "0-1"]
[Board "91"]
[TimeControl "180+1"]
[WhiteFideId "662399"]
[BlackFideId "13402390"]
[WhiteElo "2809"]
[BlackElo "2989"]
[WhiteTeam "FRA"]
[BlackTeam "AZE"]
[WhiteClock "0:00:32"]
[BlackClock "0:00:47"]

1. d4 {[%clk 0:03:00]}  Nf6 {[%clk 0:03:00]} 2. c4 {[%clk 0:03:00]}  e6 {[%clk 0:03:00]} 3. Nf3 {[%clk 0:03:00]}  d5 {[%clk 0:03:00]} 4. Nc3 {[%clk 0:03:00]}  Be7 {[%clk 0:02:59]} 5. Bf4 {[%clk 0:02:58]}  O-O {[%clk 0:02:59]} 6. e3 {[%clk 0:02:59]}  Nbd7 {[%clk 0:02:53]} 7. a3 {[%clk 0:02:58]}  dxc4 {[%clk 0:02:46]} 8. Bxc4 {[%clk 0:02:59]}  c5 {[%clk 0:02:45]} 9. O-O {[%clk 0:02:57]}  Nb6 {[%clk 0:02:41]} 10. Ba2 {[%clk 0:02:56]}  cxd4 {[%clk 0:02:38]} 11. exd4 {[%clk 0:02:54]}  Bd7 {[%clk 0:02:35]} 12. Ne5 {[%clk 0:02:52]}  Rc8 {[%clk 0:02:33]} 13. Re1 {[%clk 0:02:50]}  Bc6 {[%clk 0:02:31]} 14. Qd3 {[%clk 0:02:47]}  Nbd5 {[%clk 0:02:27]} 15. Bg5 {[%clk 0:02:40]}  h6 {[%clk 0:02:21]} 16. Bxf6 {[%clk 0:02:39]}  Bxf6 {[%clk 0:02:20]} 17. Nxc6 {[%clk 0:02:37]}  bxc6 {[%clk 0:02:19]} 18. Ne4 {[%clk 0:02:25]}  Rb8 {[%clk 0:02:03]} 19. Rab1 {[%clk 0:02:03]}  g6 {[%clk 0:01:57]} 20. g3 {[%clk 0:01:56]}  Bg7 {[%clk 0:01:52]} 21. Re2 {[%clk 0:01:53]}  a5 {[%clk 0:01:37]} 22. Rbe1 {[%clk 0:01:47]}  Rb6 {[%clk 0:01:30]} 23. Nc5 {[%clk 0:01:35]}  Nc7 {[%clk 0:01:26]} 24. Re4 {[%clk 0:01:30]}  Rxb2 {[%clk 0:01:23]} 25. Bc4 {[%clk 0:01:26]}  Qg5 {[%clk 0:01:19]} 26. h4 {[%clk 0:01:24]}  Qd2 {[%clk 0:01:18]} 27. Qxd2 {[%clk 0:01:16]}  Rxd2 {[%clk 0:01:19]} 28. Nb3 {[%clk 0:01:15]}  Rc2 {[%clk 0:01:19]} 29. Bf1 {[%clk 0:01:05]}  a4 {[%clk 0:01:11]} 30. Nc5 {[%clk 0:01:03]}  Ra8 {[%clk 0:01:03]} 31. Rb1 {[%clk 0:00:55]}  Nd5 {[%clk 0:01:00]} 32. h5 {[%clk 0:00:35]}  Nc3 {[%clk 0:00:57]} 33. Rb7 {[%clk 0:00:31]}  Nxe4 {[%clk 0:00:56]} 34. Nxe4 {[%clk 0:00:32]}  gxh5 {[%clk 0:00:50]} 35. Nd6 {[%clk 0:00:32]}  Rf8 {[%clk 0:00:49]} 36. Bh3 {[%clk 0:00:32]}  Bxd4 {[%clk 0:00:47]} 0-1

[Event "January 9 Early 2024"]
[Site "https://www.chess.com"]
[Date "2024.01.11"]
[Round "4"]
[White "De Souza, Cristiano Gomes"]
[Black "Makkar, Rajat"]
[Result "1-0"]
[Board "92"]
[TimeControl "180+1"]
[WhiteFideId "2151758"]
[BlackFideId "36016810"]
[WhiteElo "2260"]
[BlackElo "2429"]
[WhiteTeam "BRA"]
[BlackTeam "FRA"]
[WhiteClock "0:00:39"]
[BlackClock "0:00:40"]

1. d4 {[%clk 0:03:00]}  Nf6 {[%clk 0:02:59]} 2. c4 {[%clk 0:03:00]}  e6 {[%clk 0:02:59]} 3. Nf3 {[%clk 0:02:59]}  d5 {[%clk 0:03:00]} 4. Nc3 {[%clk 0:02:58]}  c6 {[%clk 0:03:00]} 5. Bg5 {[%clk 0:02:58]}  dxc4 {[%clk 0:02:59]} 6. e4 {[%clk 0:02:57]}  b5 {[%clk 0:02:59]} 7. e5 {[%clk 0:02:58]}  h6 {[%clk 0:03:00]} 8. Bh4 {[%clk 0:02:58]}  g5 {[%clk 0:03:00]} 9. exf6 {[%clk 0:02:58]}  gxh4 {[%clk 0:03:00]} 10. Ne5 {[%clk 0:02:56]}  Qxf6 {[%clk 0:02:55]} 11. Be2 {[%clk 0:02:56]}  Bb7 {[%clk 0:02:54]} 12. Bf3 {[%clk 0:02:55]}  Bd6 {[%clk 0:02:49]} 13. Ne4 {[%clk 0:02:50]}  Qd8 {[%clk 0:02:46]} 14. O-O {[%clk 0:02:44]}  Ke7 {[%clk 0:02:31]} 15. a4 {[%clk 0:02:42]}  a6 {[%clk 0:02:27]} 16. Bh5 {[%clk 0:02:36]}  Rh7 {[%clk 0:01:57]} 17. Qf3 {[%clk 0:02:31]}  f5 {[%clk 0:01:52]} 18. Ng6+ {[%clk 0:02:28]}  Kd7 {[%clk 0:01:53]} 19. Nc5+ {[%clk 0:02:22]}  Bxc5 {[%clk 0:01:51]} 20. dxc5 {[%clk 0:02:23]}  Kc7 {[%clk 0:01:51]} 21. Rfd1 {[%clk 0:02:23]}  Nd7 {[%clk 0:01:51]} 22. Qe3 {[%clk 0:02:19]}  Qf6 {[%clk 0:01:40]} 23. Rd6 {[%clk 0:02:12]}  Rg8 {[%clk 0:01:22]} 24. Rxe6 {[%clk 0:02:05]}  Qxb2 {[%clk 0:01:19]} 25. Qf4+ {[%clk 0:02:00]}  Kc8 {[%clk 0:01:17]} 26. Rd1 {[%clk 0:01:56]}  c3 {[%clk 0:01:02]} 27. Ne7+ {[%clk 0:01:49]}  Rxe7 {[%clk 0:01:03]} 28. Rxe7 {[%clk 0:01:48]}  c2 {[%clk 0:01:03]} 29. Rde1 {[%clk 0:01:33]}  Rd8 {[%clk 0:00:52]} 30. Be8 {[%clk 0:01:10]}  Qc3 {[%clk 0:00:39]} 31. Bxd7+ {[%clk 0:00:46]}  Rxd7 {[%clk 0:00:38]} 32. Re8+ {[%clk 0:00:44]}  Rd8 {[%clk 0:00:38]} 33. Rxd8+ {[%clk 0:00:42]}  Kxd8 {[%clk 0:00:39]} 34. Qd6+ {[%clk 0:00:42]}  Kc8 {[%clk 0:00:40]} 35. Re8# {[%clk 0:00:39]} 1-0

[Event "January 9 Early 2024"]
[Site "https://www.chess.com"]
[Date "2024.01.11"]
[Round "4"]
[White "Olsson, Linus"]
[Black "Carow, Johannes"]
[Result "0-1"]
[Board "93"]
[TimeControl "180+1"]
[WhiteFideId "1706098"]
[BlackFideId "24692050"]
[WhiteElo "2505"]
[BlackElo "2713"]
[WhiteTeam "SWE"]
[BlackTeam "GER"]
[WhiteClock "0:00:27"]
[BlackClock "0:00:22"]

1. d4 {[%clk 0:03:00]}  Nf6 {[%clk 0:02:57]} 2. c4 {[%clk 0:03:00]}  g6 {[%clk 0:02:53]} 3. Nc3 {[%clk 0:03:00]}  d5 {[%clk 0:02:47]} 4. cxd5 {[%clk 0:03:01]}  Nxd5 {[%clk 0:02:47]} 5. e4 {[%clk 0:02:59]}  Nxc3 {[%clk 0:02:47]} 6. bxc3 {[%clk 0:03:00]}  Bg7 {[%clk 0:02:48]} 7. Bc4 {[%clk 0:03:00]}  c5 {[%clk 0:02:48]} 8. Ne2 {[%clk 0:03:01]}  Nc6 {[%clk 0:02:48]} 9. Be3 {[%clk 0:03:01]}  O-O {[%clk 0:02:49]} 10. h4 {[%clk 0:03:01]}  Qa5 {[%clk 0:02:46]} 11. Kf1 {[%clk 0:02:56]}  cxd4 {[%clk 0:02:40]} 12. cxd4 {[%clk 0:02:55]}  Rd8 {[%clk 0:02:39]} 13. h5 {[%clk 0:02:52]}  Qb4 {[%clk 0:02:18]} 14. Rc1 {[%clk 0:02:24]}  Ne5 {[%clk 0:02:09]} 15. Bd2 {[%clk 0:01:58]}  Qd6 {[%clk 0:01:44]} 16. h6 {[%clk 0:01:50]}  Nxc4 {[%clk 0:01:33]} 17. Rxc4 {[%clk 0:01:49]}  Be6 {[%clk 0:01:19]} 18. d5 {[%clk 0:01:40]}  Be5 {[%clk 0:01:18]} 19. Bc3 {[%clk 0:01:31]}  Bd7 {[%clk 0:00:40]} 20. Qb3 {[%clk 0:01:22]}  b5 {[%clk 0:00:33]} 21. Rd4 {[%clk 0:01:07]}  Bxd4 {[%clk 0:00:31]} 22. Bxd4 {[%clk 0:00:56]}  b4 {[%clk 0:00:26]} 23. f3 {[%clk 0:00:35]}  Bb5 {[%clk 0:00:25]} 24. Kf2 {[%clk 0:00:35]}  Bxe2 {[%clk 0:00:23]} 25. Kxe2 {[%clk 0:00:36]}  Rac8 {[%clk 0:00:23]} 26. Bc3 {[%clk 0:00:27]}  bxc3 {[%clk 0:00:22]} 0-1

[Event "January 9 Early 2024"]
[Site "https://www.chess.com"]
[Date "2024.01.11"]
[Round "4"]
[White "Pujari, Rucha"]
[Black "Llari, Marc"]
[Result "0-1"]
[Board "94"]
[TimeControl "180+1"]
[WhiteFideId "5024528"]
[BlackFideId "651044269"]
[WhiteElo "2476"]
[BlackElo "2318"]
[WhiteTeam "IND"]
[BlackTeam "FRA"]
[WhiteClock "0:00:04"]
[BlackClock "0:01:25"]

1. d4 {[%clk 0:03:00]}  f5 {[%clk 0:02:58]} 2. c4 {[%clk 0:02:51]}  Nf6 {[%clk 0:02:56]} 3. Nf3 {[%clk 0:02:52]}  g6 {[%clk 0:02:56]} 4. g3 {[%clk 0:02:52]}  Bg7 {[%clk 0:02:57]} 5. Bg2 {[%clk 0:02:52]}  O-O {[%clk 0:02:58]} 6. O-O {[%clk 0:02:51]}  d6 {[%clk 0:02:56]} 7. Nc3 {[%clk 0:02:51]}  Nbd7 {[%clk 0:02:54]} 8. Ng5 {[%clk 0:02:44]}  Nb6 {[%clk 0:02:49]} 9. d5 {[%clk 0:02:41]}  Nxc4 {[%clk 0:02:47]} 10. Ne6 {[%clk 0:02:35]}  Bxe6 {[%clk 0:02:47]} 11. dxe6 {[%clk 0:02:35]}  c6 {[%clk 0:02:47]} 12. a4 {[%clk 0:02:30]}  a5 {[%clk 0:02:44]} 13. b3 {[%clk 0:02:28]}  Nb6 {[%clk 0:02:43]} 14. Be3 {[%clk 0:02:23]}  Nfd5 {[%clk 0:02:29]} 15. Nxd5 {[%clk 0:02:18]}  Nxd5 {[%clk 0:02:28]} 16. Bxd5 {[%clk 0:02:15]}  Bxa1 {[%clk 0:02:16]} 17. Qxa1 {[%clk 0:02:12]}  cxd5 {[%clk 0:02:16]} 18. Qd4 {[%clk 0:02:08]}  Rc8 {[%clk 0:02:05]} 19. h4 {[%clk 0:01:57]}  Rf6 {[%clk 0:02:01]} 20. Bh6 {[%clk 0:01:50]}  Qc7 {[%clk 0:01:56]} 21. Rd1 {[%clk 0:01:36]}  Qc5 {[%clk 0:01:50]} 22. Rc1 {[%clk 0:01:25]}  Qxc1+ {[%clk 0:01:50]} 23. Bxc1 {[%clk 0:01:24]}  Rxc1+ {[%clk 0:01:51]} 24. Kg2 {[%clk 0:01:23]}  Rxe6 {[%clk 0:01:51]} 25. Qxd5 {[%clk 0:01:16]}  Kf7 {[%clk 0:01:51]} 26. h5 {[%clk 0:00:54]}  Rc5 {[%clk 0:01:47]} 27. Qxb7 {[%clk 0:00:46]}  Rxe2 {[%clk 0:01:46]} 28. h6 {[%clk 0:00:33]}  Rcc2 {[%clk 0:01:39]} 29. Qd5+ {[%clk 0:00:30]}  e6 {[%clk 0:01:36]} 30. Qb7+ {[%clk 0:00:26]}  Kf6 {[%clk 0:01:34]} 31. Qxh7 {[%clk 0:00:12]}  Rxf2+ {[%clk 0:01:33]} 32. Kg1 {[%clk 0:00:08]}  Rg2+ {[%clk 0:01:31]} 33. Kf1 {[%clk 0:00:08]}  Rh2 {[%clk 0:01:29]} 34. Kg1 {[%clk 0:00:04]}  Rcg2+ {[%clk 0:01:28]} 35. Kf1 {[%clk 0:00:04]}  Rxg3 {[%clk 0:01:25]} 0-1

[Event "January 9 Early 2024"]
[Site "https://www.chess.com"]
[Date "2024.01.11"]
[Round "4"]
[White "Vela Frago, Alberto"]
[Black "Smirnov, Alexandr A."]
[Result "1-0"]
[Board "95"]
[TimeControl "180+1"]
[WhiteFideId "24531685"]
[BlackFideId "24104396"]
[WhiteElo "2324"]
[BlackElo "2638"]
[WhiteTeam "ESP"]
[BlackTeam "RUS"]
[WhiteClock "0:00:44"]
[BlackClock "0:00:21"]

1. e4 {[%clk 0:03:00]}  d5 {[%clk 0:02:58]} 2. exd5 {[%clk 0:02:59]}  Qxd5 {[%clk 0:02:59]} 3. Nc3 {[%clk 0:02:59]}  Qd6 {[%clk 0:02:58]} 4. Nf3 {[%clk 0:02:55]}  Nf6 {[%clk 0:02:58]} 5. d4 {[%clk 0:02:53]}  a6 {[%clk 0:02:58]} 6. g3 {[%clk 0:02:45]}  Bg4 {[%clk 0:02:56]} 7. h3 {[%clk 0:02:40]}  Bh5 {[%clk 0:02:55]} 8. Bg2 {[%clk 0:02:36]}  Nc6 {[%clk 0:02:54]} 9. O-O {[%clk 0:02:29]}  O-O-O {[%clk 0:02:48]} 10. Be3 {[%clk 0:02:22]}  e5 {[%clk 0:02:40]} 11. dxe5 {[%clk 0:02:17]}  Nxe5 {[%clk 0:02:39]} 12. Qxd6 {[%clk 0:02:09]}  Bxd6 {[%clk 0:02:31]} 13. Nxe5 {[%clk 0:02:09]}  Bxe5 {[%clk 0:02:32]} 14. f4 {[%clk 0:02:00]}  Bxc3 {[%clk 0:02:07]} 15. bxc3 {[%clk 0:02:01]}  Be2 {[%clk 0:02:07]} 16. Rfe1 {[%clk 0:01:57]}  Bc4 {[%clk 0:02:07]} 17. a4 {[%clk 0:01:45]}  Rhe8 {[%clk 0:02:05]} 18. Bd4 {[%clk 0:01:37]}  Rxe1+ {[%clk 0:02:02]} 19. Rxe1 {[%clk 0:01:38]}  Re8 {[%clk 0:02:02]} 20. Rb1 {[%clk 0:01:33]}  c6 {[%clk 0:01:59]} 21. a5 {[%clk 0:01:24]}  Re2 {[%clk 0:01:35]} 22. Bf1 {[%clk 0:01:17]}  Nd5 {[%clk 0:00:52]} 23. Bxe2 {[%clk 0:01:13]}  Bxe2 {[%clk 0:00:53]} 24. Bxg7 {[%clk 0:01:10]}  Bb5 {[%clk 0:00:53]} 25. Kf2 {[%clk 0:01:05]}  f6 {[%clk 0:00:50]} 26. Re1 {[%clk 0:01:00]}  Kd7 {[%clk 0:00:46]} 27. Kf3 {[%clk 0:00:57]}  Ba4 {[%clk 0:00:28]} 28. c4 {[%clk 0:00:51]}  Nb4 {[%clk 0:00:24]} 29. Bxf6 {[%clk 0:00:49]}  Nxc2 {[%clk 0:00:23]} 30. Re7+ {[%clk 0:00:48]}  Kd6 {[%clk 0:00:24]} 31. Rxb7 {[%clk 0:00:46]}  Na3 {[%clk 0:00:21]} 32. Be7+ {[%clk 0:00:44]} 1-0

[Event "January 9 Early 2024"]
[Site "https://www.chess.com"]
[Date "2024.01.11"]
[Round "4"]
[White "Vincenti, Leonardo"]
[Black "Perossa, Nicolas"]
[Result "1-0"]
[Board "96"]
[TimeControl "180+1"]
[WhiteFideId "28550820"]
[BlackFideId "2850520"]
[WhiteElo "2210"]
[BlackElo "2433"]
[WhiteTeam "ITA"]
[BlackTeam "ITA"]
[WhiteClock "0:01:05"]
[BlackClock "0:00:01"]

1. e4 {[%clk 0:03:00]}  d6 {[%clk 0:03:00]} 2. d4 {[%clk 0:03:00]}  Nf6 {[%clk 0:03:01]} 3. Bd3 {[%clk 0:03:00]}  c5 {[%clk 0:03:00]} 4. dxc5 {[%clk 0:02:59]}  dxc5 {[%clk 0:02:57]} 5. Nc3 {[%clk 0:02:58]}  Nc6 {[%clk 0:02:56]} 6. Nge2 {[%clk 0:02:55]}  e6 {[%clk 0:02:51]} 7. f3 {[%clk 0:02:52]}  Be7 {[%clk 0:02:42]} 8. Be3 {[%clk 0:02:51]}  a6 {[%clk 0:02:40]} 9. a4 {[%clk 0:02:51]}  O-O {[%clk 0:02:34]} 10. O-O {[%clk 0:02:48]}  b6 {[%clk 0:02:25]} 11. Nf4 {[%clk 0:02:36]}  Bb7 {[%clk 0:02:20]} 12. Be2 {[%clk 0:02:36]}  Qc7 {[%clk 0:02:19]} 13. Nd3 {[%clk 0:02:34]}  Rad8 {[%clk 0:02:16]} 14. Qe1 {[%clk 0:02:32]}  Nd4 {[%clk 0:02:13]} 15. Rc1 {[%clk 0:02:31]}  e5 {[%clk 0:01:42]} 16. Qg3 {[%clk 0:02:25]}  Nh5 {[%clk 0:01:26]} 17. Qxe5 {[%clk 0:02:19]}  Qxe5 {[%clk 0:01:25]} 18. Nxe5 {[%clk 0:02:20]}  Bd6 {[%clk 0:01:06]} 19. Ng4 {[%clk 0:02:18]}  Nf4 {[%clk 0:01:00]} 20. Bc4 {[%clk 0:02:05]}  h5 {[%clk 0:00:50]} 21. Nf2 {[%clk 0:02:05]}  Be5 {[%clk 0:00:34]} 22. Nd3 {[%clk 0:01:53]}  Nxd3 {[%clk 0:00:09]} 23. Bxd3 {[%clk 0:01:53]}  Bf6 {[%clk 0:00:08]} 24. Rb1 {[%clk 0:01:42]}  g6 {[%clk 0:00:08]} 25. Rfd1 {[%clk 0:01:41]}  Rd7 {[%clk 0:00:07]} 26. Ne2 {[%clk 0:01:41]}  Rfd8 {[%clk 0:00:05]} 27. c3 {[%clk 0:01:37]}  Ne6 {[%clk 0:00:04]} 28. Bc2 {[%clk 0:01:35]}  Bc6 {[%clk 0:00:03]} 29. b4 {[%clk 0:01:28]}  cxb4 {[%clk 0:00:03]} 30. cxb4 {[%clk 0:01:29]}  b5 {[%clk 0:00:02]} 31. a5 {[%clk 0:01:25]}  Be7 {[%clk 0:00:02]} 32. Nc3 {[%clk 0:01:04]}  Rxd1+ {[%clk 0:00:01]} 33. Bxd1 {[%clk 0:01:05]} 1-0

[Event "January 9 Early 2024"]
[Site "https://www.chess.com"]
[Date "2024.01.11"]
[Round "4"]
[White "Jimenez Almeida, Luis David"]
[Black "Onslow, Alfie"]
[Result "1-0"]
[Board "98"]
[TimeControl "180+1"]
[WhiteFideId "22242244"]
[BlackFideId "436976"]
[WhiteElo "2518"]
[BlackElo "2323"]
[WhiteTeam "ESP"]
[BlackTeam "ENG"]
[WhiteClock "0:01:31"]
[BlackClock "0:00:02"]

1. e4 {[%clk 0:03:00]}  c5 {[%clk 0:02:59]} 2. Nc3 {[%clk 0:03:00]}  Nc6 {[%clk 0:02:59]} 3. g3 {[%clk 0:02:59]}  g6 {[%clk 0:02:59]} 4. Bg2 {[%clk 0:02:59]}  Bg7 {[%clk 0:02:59]} 5. d3 {[%clk 0:02:58]}  d6 {[%clk 0:03:00]} 6. Be3 {[%clk 0:02:59]}  Rb8 {[%clk 0:02:49]} 7. a4 {[%clk 0:02:58]}  a6 {[%clk 0:02:41]} 8. h3 {[%clk 0:02:56]}  b5 {[%clk 0:02:40]} 9. axb5 {[%clk 0:02:56]}  axb5 {[%clk 0:02:41]} 10. Qd2 {[%clk 0:02:56]}  b4 {[%clk 0:02:37]} 11. Nd1 {[%clk 0:02:56]}  Nf6 {[%clk 0:02:27]} 12. Ne2 {[%clk 0:02:55]}  O-O {[%clk 0:02:27]} 13. O-O {[%clk 0:02:53]}  e5 {[%clk 0:02:21]} 14. Bh6 {[%clk 0:02:53]}  Nd4 {[%clk 0:02:16]} 15. Bxg7 {[%clk 0:02:51]}  Kxg7 {[%clk 0:02:13]} 16. Nc1 {[%clk 0:02:50]}  Be6 {[%clk 0:01:55]} 17. c3 {[%clk 0:02:43]}  bxc3 {[%clk 0:01:49]} 18. bxc3 {[%clk 0:02:43]}  Nb3 {[%clk 0:01:49]} 19. Nxb3 {[%clk 0:02:44]}  Rxb3 {[%clk 0:01:50]} 20. Ne3 {[%clk 0:02:42]}  Qb6 {[%clk 0:01:44]} 21. Rac1 {[%clk 0:02:35]}  Rb2 {[%clk 0:01:35]} 22. Rc2 {[%clk 0:02:35]}  Rb8 {[%clk 0:01:34]} 23. f4 {[%clk 0:02:33]}  Rxc2 {[%clk 0:01:17]} 24. Nxc2 {[%clk 0:02:28]}  Qb2 {[%clk 0:01:13]} 25. fxe5 {[%clk 0:02:27]}  dxe5 {[%clk 0:01:08]} 26. Qg5 {[%clk 0:01:57]}  Nd7 {[%clk 0:01:07]} 27. Ne3 {[%clk 0:01:55]}  Qxc3 {[%clk 0:01:04]} 28. Nf5+ {[%clk 0:01:51]}  Bxf5 {[%clk 0:00:36]} 29. exf5 {[%clk 0:01:52]}  f6 {[%clk 0:00:36]} 30. Qg4 {[%clk 0:01:51]}  Qd4+ {[%clk 0:00:29]} 31. Kh2 {[%clk 0:01:51]}  Qxg4 {[%clk 0:00:24]} 32. hxg4 {[%clk 0:01:52]}  Rb3 {[%clk 0:00:23]} 33. Be4 {[%clk 0:01:48]}  Rb2+ {[%clk 0:00:19]} 34. Kh3 {[%clk 0:01:48]}  g5 {[%clk 0:00:18]} 35. Ra1 {[%clk 0:01:47]}  Kf7 {[%clk 0:00:15]} 36. Ra7 {[%clk 0:01:46]}  Ke7 {[%clk 0:00:15]} 37. Bc6 {[%clk 0:01:46]}  Kd6 {[%clk 0:00:08]} 38. Bxd7 {[%clk 0:01:44]}  Rd2 {[%clk 0:00:07]} 39. Be6 {[%clk 0:01:44]}  Kc6 {[%clk 0:00:05]} 40. Bc4 {[%clk 0:01:42]}  Rc2 {[%clk 0:00:03]} 41. Ra6+ {[%clk 0:01:37]}  Kb7 {[%clk 0:00:03]} 42. Rxf6 {[%clk 0:01:37]}  e4 {[%clk 0:00:03]} 43. Re6 {[%clk 0:01:35]}  exd3 {[%clk 0:00:03]} 44. Bxd3 {[%clk 0:01:35]}  Rd2 {[%clk 0:00:02]} 45. Be4+ {[%clk 0:01:32]}  Kc7 {[%clk 0:00:03]} 46. f6 {[%clk 0:01:32]}  Rf2 {[%clk 0:00:02]} 47. Bf5 {[%clk 0:01:31]} 1-0

[Event "January 9 Early 2024"]
[Site "https://www.chess.com"]
[Date "2024.01.11"]
[Round "4"]
[White "Martinez Pla, Xavier"]
[Black "Abrosimov, Vladimir"]
[Result "1-0"]
[Board "99"]
[TimeControl "180+1"]
[WhiteFideId "32074271"]
[BlackFideId "4166892"]
[WhiteElo "2457"]
[BlackElo "2180"]
[WhiteTeam "ESP"]
[BlackTeam "RUS"]
[WhiteClock "0:01:23"]
[BlackClock "0:00:52"]

1. e4 {[%clk 0:03:00]}  c5 {[%clk 0:02:59]} 2. Nf3 {[%clk 0:03:01]}  d6 {[%clk 0:02:59]} 3. Bb5+ {[%clk 0:03:01]}  Bd7 {[%clk 0:02:58]} 4. c4 {[%clk 0:03:00]}  Nf6 {[%clk 0:02:57]} 5. Nc3 {[%clk 0:03:00]}  a6 {[%clk 0:02:57]} 6. Bxd7+ {[%clk 0:03:00]}  Qxd7 {[%clk 0:02:57]} 7. O-O {[%clk 0:03:01]}  Nc6 {[%clk 0:02:58]} 8. d4 {[%clk 0:03:01]}  cxd4 {[%clk 0:02:57]} 9. Nxd4 {[%clk 0:03:02]}  Nxd4 {[%clk 0:02:57]} 10. Qxd4 {[%clk 0:03:02]}  g6 {[%clk 0:02:57]} 11. h3 {[%clk 0:03:03]}  Bg7 {[%clk 0:02:57]} 12. Be3 {[%clk 0:03:03]}  O-O {[%clk 0:02:57]} 13. Qd3 {[%clk 0:03:04]}  Rac8 {[%clk 0:02:54]} 14. b3 {[%clk 0:03:04]}  Qc6 {[%clk 0:02:51]} 15. Rac1 {[%clk 0:03:03]}  Rfe8 {[%clk 0:02:44]} 16. Rfd1 {[%clk 0:03:01]}  Qd7 {[%clk 0:02:39]} 17. e5 {[%clk 0:02:56]}  Nh5 {[%clk 0:02:26]} 18. g4 {[%clk 0:02:51]}  Bxe5 {[%clk 0:02:23]} 19. gxh5 {[%clk 0:02:50]}  Qxh3 {[%clk 0:02:22]} 20. f4 {[%clk 0:02:44]}  Qg3+ {[%clk 0:02:21]} 21. Kf1 {[%clk 0:02:42]}  Qh3+ {[%clk 0:02:21]} 22. Ke1 {[%clk 0:02:38]}  Qg3+ {[%clk 0:02:12]} 23. Bf2 {[%clk 0:02:34]}  Qxf4 {[%clk 0:02:09]} 24. Nd5 {[%clk 0:02:31]}  Qg5 {[%clk 0:01:57]} 25. hxg6 {[%clk 0:02:25]}  fxg6 {[%clk 0:01:55]} 26. Qe3 {[%clk 0:02:21]}  Qh5 {[%clk 0:01:48]} 27. Qe2 {[%clk 0:02:12]}  Qh1+ {[%clk 0:01:45]} 28. Kd2 {[%clk 0:02:12]}  Qh2 {[%clk 0:01:39]} 29. Be3 {[%clk 0:02:09]}  Qxe2+ {[%clk 0:01:32]} 30. Kxe2 {[%clk 0:02:10]}  e6 {[%clk 0:01:29]} 31. Nb4 {[%clk 0:02:05]}  Rc7 {[%clk 0:01:25]} 32. a4 {[%clk 0:02:02]}  Rf8 {[%clk 0:01:22]} 33. Rh1 {[%clk 0:02:02]}  h5 {[%clk 0:01:20]} 34. Rcg1 {[%clk 0:02:00]}  Kh7 {[%clk 0:01:20]} 35. Nd3 {[%clk 0:01:59]}  Rf5 {[%clk 0:01:12]} 36. Rg2 {[%clk 0:01:59]}  d5 {[%clk 0:01:05]} 37. c5 {[%clk 0:01:52]}  d4 {[%clk 0:00:59]} 38. Bf2 {[%clk 0:01:52]}  Bf6 {[%clk 0:00:54]} 39. Rhg1 {[%clk 0:01:50]}  g5 {[%clk 0:00:52]} 40. Rh1 {[%clk 0:01:23]} 1-0